Cogmind - Beta 15 @@@ ROGUE MODE // 2025.06.04 @ 17:32:49 Player: BlobtheGreat Result: Destroyed by D-53 Grenadier with Mini Grenade Launcher Performance ------------- Evolutions (0) 0 Regions Visited (2) 400 Robots Destroyed (9) 45 Value Destroyed (174) 174 Prototype IDs (0) 0 Alien Tech Used (0) 0 Bonus (0) 0 TOTAL SCORE: 619 Bonus ------- None Cogmind --------- Core Integrity 0/250 Matter 190/300 Energy 100/100 System Corruption 0% Temperature Cool (0) Movement Core (100) Ox1 Location -10/Mines Parts ------- > --- POWER (1) -------- (None) > --- PROPULSION (2) --- (None) > --- UTILITY (2) ------ Small Storage Unit Seismic Detector > --- WEAPON (2) ------- (None) > --- INVENTORY (8) ---- Light Ion Engine Aluminum Leg Improved Terrain Scanner Light Armor Plating EM Pulse Gun Light Assault Rifle Datajack Mining Laser Peak State ------------ > --- POWER ------------ Ion Engine > --- PROPULSION ------- Aluminum Leg Aluminum Leg > --- UTILITY ---------- Small Storage Unit Improved Terrain Scanner > --- WEAPON ----------- Small Laser Light Assault Rifle > --- INVENTORY -------- Light Ion Engine Aluminum Leg Seismic Detector Light Armor Plating EM Pulse Gun Grenade Launcher Datajack Mining Laser [Rating: 9] Favorites ----------- Power Ion Engine Engine Ion Engine Propulsion Aluminum Leg Leg Aluminum Leg Utility Small Storage Unit Device Seismic Detector Storage Small Storage Unit Protection Power Shielding Weapon Small Laser Energy Gun Small Laser Ballistic Gun Light Assault Rifle Launcher Grenade Launcher Special Weapon Mining Laser Build | -11 -10 -10 ------- Run | Yrd Mat Min Slots Evolved . | . . . Power . | . . . Propulsion . | . . . Utility . | . . . Weapon . | . . . Parts Attached 13 | 7 6 . Power 1 | 1 . . Engine 1 | 1 . . Core . | . . . Reactor . | . . . Propulsion 3 | 2 1 . Treads . | . . . Leg 3 | 2 1 . Wheel . | . . . Hover . | . . . Flight . | . . . Utility 4 | 2 2 . Device 2 | 1 1 . Storage 1 | 1 . . Processor . | . . . Hackware . | . . . Protection 1 | . 1 . Artifact . | . . . Weapon 5 | 2 3 . Energy Gun 2 | 1 1 . Energy Cannon . | . . . Ballistic Gun 1 | 1 . . Ballistic Cannon . | . . . Launcher 1 | . 1 . Special Weapon 1 | . 1 . Impact Weapon . | . . . Slashing Weapon . | . . . Piercing Weapon . | . . . Special Melee Weapon . | . . . Unidentified Prototypes . | . . . Parts Lost 5 | . . 5 Power 1 | . . 1 Propulsion 2 | . . 2 Utility . | . . . Weapon 2 | . . 2 Highest Loss Streak 5 | . . 5 To Critical Strikes . | . . . Average Backups 7 | 5 7 8 Power 1 | 1 1 1 Propulsion 2 | 3 1 1 Utility 1 | . 2 2 Weapon 1 | . 2 3 Tool/Special . | . . . Unused Backups 9 | . 6 3 Power 1 | . . 1 Propulsion 5 | . 5 . Utility 2 | . 1 1 Weapon . | . . . Tool/Special 1 | . . 1 Average Slot Usage (%) 98 | . 99 92 Engine 13 | . 14 12 Leg 27 | . 27 24 Device 11 | . 11 14 Storage 14 | . 14 14 Protection 2 | . 2 . Energy Gun 13 | . 13 14 Ballistic Gun 9 | . 11 . Special Weapon 3 | . 2 10 Peak Build Rating 9 | 7 9 8 Average Rating 7 | 5 7 7 On Entrance 5 | . 7 8 Naked Turns . | . . . Heaviest Build 15 | 14 15 15 Greatest Support 20 | 20 20 20 Greatest Overweight (x) 2 | . 1 2 Average Overweight (x) . | . . . Largest Inventory Capacity 8 | 8 8 8 Average Capacity 7 | 7 8 8 Most Carried 8 | 8 8 8 Average Carried 7 | 5 7 8 Final Capacity 8 | 8 8 8 Final Carried 8 | 7 8 8 Class Distribution -------------------- 100% | Mutant Dominant Class ---------------- Mutant | -10/Materials Mutant | -10/Mines Resources | -11 -10 -10 ----------- Run | Yrd Mat Min Matter Collected 333 | 202 131 . Remotely . | . . . Salvage Created 165 | 28 137 . Parts 15 | 6 9 . Haulers Intercepted . | . . . Recyclers Shooed 1 | 1 . . Parts Field Recycled . | . . . Retrieved Matter . | . . . Parts Self-Destructed . | . . . Prevented . | . . . Kills | -11 -10 -10 ------- Run | Yrd Mat Min Combat Hostiles Destroyed 6 | . 6 . Guns 3 | . 3 . AOE 3 | . 3 . Classes Destroyed 4 | 1 3 . Builder 1 | . 1 . Tunneler 2 | 2 . . Swarmer 3 | . 3 . Grunt 3 | . 3 . Best Kill Streak 5 | 2 5 . Combat Bots Only 4 | . 4 . Max Kills in Single Turn 2 | 1 2 . Gunslinging . | . . . Exploded 2 | . 2 . Melee . | . . . Uniques/NPCs Destroyed . | . . . Combat | -11 -10 -10 -------- Run | Yrd Mat Min Hostile Shots Fired 57 | . 46 11 Missed 18 | . 17 1 Hits 39 | . 29 10 Projectile 39 | . 29 10 AOE 12 | . . 12 Critical Strikes 1 | . 1 . Damage Taken 790 | . 321 469 Core 252 | . 88 164 Absorbed by Shields . | . . . Redirected to Shielding 4 | . 4 . Regen/Repaired (Parts) 87 | . 87 . Core Remaining (%) 100 | 100 . . Volleys Fired 46 | 25 18 3 Largest 2 | 1 2 1 Hottest 100 | 20 100 30 Shots Fired 59 | 25 31 3 Gun 51 | 25 26 . Cannon . | . . . Launcher 6 | . 3 3 Special 2 | . 2 . Kinetic 38 | 25 13 . Thermal 15 | . 15 . Explosive 6 | . 3 3 Electromagnetic . | . . . Robot Hit Streak 16 | 7 16 6 Robot Miss Streak 1 | 1 1 . Penetration Max . | . . . Secondary Targets . | . . . Shots Hit Robots 47 | 21 23 3 Core Hits 22 | 6 12 4 Critical Kills . | . . . Critical Parts Destroyed . | . . . Critical Strikes . | . . . Melee Attacks . | . . . Impact . | . . . Slashing . | . . . Piercing . | . . . Sneak Attacks . | . . . Combat Hostiles . | . . . Follow-up Attacks . | . . . Damage Inflicted 686 | 183 456 47 Guns 383 | 183 200 . Cannons . | . . . Explosions 303 | . 256 47 Melee . | . . . Ramming . | . . . Kinetic 261 | 183 78 . Thermal 122 | . 122 . Explosive 303 | . 256 47 Electromagnetic . | . . . Impact . | . . . Slashing . | . . . Piercing . | . . . Highest Corruption . | . . . Average Corruption . | . . . Corruption Purged . | . . . Corruption Blocked . | . . . Overload Shots . | . . . Overflow Damage 3 | . 3 . Projectiles . | . . . Explosions 3 | . 3 . Melee . | . . . Knockbacks . | . . . Impact . | . . . Kinetic . | . . . Secondary . | . . . Self-Inflicted Damage . | . . . Shots . | . . . Rammed . | . . . Targets Rammed . | . . . Kicked . | . . . Crushed . | . . . Highest Temperature 80 | . 80 . Average Temperature 27 | . 27 . Received Heat Transfer 147 | . 147 . Siege Activations . | . . . Martial Activations . | . . . Shielding Activations . | . . . Robots Disrupted . | . . . Combat Hostiles . | . . . Robots Corrupted . | . . . Combat Hostiles . | . . . Parts Fried . | . . . Impact Corruptions . | . . . Robots Melted . | . . . Combat Hostiles . | . . . Parts Melted 1 | . 1 . Heat Transferred 275 | . 275 . Parts Sabotaged . | . . . Parts Stolen . | . . . Parts Stripped . | . . . Power Chain Reactions . | . . . Alert | -11 -10 -10 ------- Run | Yrd Mat Min Maximum Alert Level . | . . . Low Security (%) 100 | 100 100 100 Level 1 . | . . . Level 2 . | . . . Level 3 . | . . . Level 4 . | . . . Level 5 . | . . . High Security . | . . . Max Security . | . . . Peak Influence 160 | 5 160 2 Initial 1 | . . 1 Average 42 | . 62 . Influence Increases 216 | 10 204 2 Destroy 0b10 Robot/C 120 | . 120 . Destroy 0b10 Robot/NC 15 | 10 5 . Destroy Leader 30 | . 30 . Successful Hack 12 | . 12 . Disable Machine 15 | . 15 . Destroy Structure 24 | . 22 2 Influence Decreases 216 | 10 200 6 Entered New Map 3 | . . 3 Time Decay 211 | 10 200 1 Lost Part 2 | . . 2 Squads Dispatched 1 | . 1 . Investigation . | . . . Extermination . | . . . Reinforcement 1 | . 1 . Assault . | . . . Garrison . | . . . Intercept . | . . . Searches Triggered . | . . . Construction Impeded . | . . . Haulers Reinforced . | . . . Active Scanning Responses . | . . . Cargo Convoy Interrupts . | . . . Stealth | -11 -10 -10 --------- Run | Yrd Mat Min Distress Signals . | . . . Communications Jammed . | . . . Distress Signals . | . . . Times Spotted 14 | . 10 4 Peak Tracking Total 4 | . 4 3 Tactical Retreats . | . . . Traps | -11 -10 -10 ------- Run | Yrd Mat Min Traps Triggered . | . . . Indirectly . | . . . Trap Hack Attempts . | . . . Triggered . | . . . Disarmed . | . . . Reprogrammed . | . . . Reused . | . . . Traps Extracted . | . . . Installed . | . . . Triggered . | . . . Machines | -11 -10 -10 ---------- Run | Yrd Mat Min Machines Disabled 1 | . 1 . Max in Single Turn 1 | . 1 . Machines Repaired . | . . . Machines Dismantled . | . . . Machines Sabotaged . | . . . Overloaded Fab Kills . | . . . Hacking | -11 -10 -10 --------- Run | Yrd Mat Min Machines Accessed 7 | . 7 . Terminals 4 | . 4 . Fabricators . | . . . Repair Stations 1 | . 1 . Recycling Units 2 | . 2 . Scanalyzers . | . . . Garrison Access . | . . . Total Hacks 16 | . 16 . Successful 8 | . 8 . Failed 8 | . 8 . Catastrophic . | . . . Database Lockouts . | . . . Manual . | . . . Terminals 11 | . 11 . Fabricators . | . . . Repair Stations 3 | . 3 . Recycling Units 2 | . 2 . Scanalyzers . | . . . Garrison Access . | . . . Terminal Hacks 4 | . 4 . Locate Traps 2 | . 2 . Hauler Manifests 1 | . 1 . Zone Layout 1 | . 1 . Fabricator Hacks . | . . . Repair Station Hacks 2 | . 2 . Scan Component 1 | . 1 . Repair 1 | . 1 . Recycling Unit Hacks 2 | . 2 . Report Inventory 2 | . 2 . Scanalyzer . | . . . Garrison Access Hacks . | . . . Unauthorized Hacks . | . . . Terminals . | . . . Fabricators . | . . . Repair Stations . | . . . Recycling Units . | . . . Scanalyzers . | . . . Garrison Access . | . . . Data Cores Recovered . | . . . Used . | . . . Hacking Detections 6 | . 6 . Full Trace Events . | . . . Feedback Events . | . . . Feedback Blocked . | . . . Robot Schematics Acquired . | . . . Robots Built . | . . . Authchips . | . . . Time . | . . . Total Robot Build Rating . | . . . Part Schematics Acquired . | . . . Parts Built . | . . . Authchips . | . . . Time . | . . . Total Part Build Rating . | . . . Parts Repaired 1 | . 1 . Time 26 | . 26 . Parts Recycled . | . . . Recycled Matter . | . . . Retrieved Matter . | . . . Retrieved Components . | . . . Parts Scanalyzed . | . . . Part Schematics Acquired . | . . . Parts Damaged . | . . . Bothacking | -11 -10 -10 ------------ Run | Yrd Mat Min Used RIF Installer . | . . . Robots Hacked . | . . . Non-combat . | . . . Combat . | . . . Robot Hacks Applied . | . . . Relay Couplers Released . | . . . Fabnet Peak Effective % . | . . . Robots Rewired . | . . . Allies Hacked . | . . . Hacks Repelled . | . . . Allies | -11 -10 -10 -------- Run | Yrd Mat Min Total Allies . | . . . Largest Group . | . . . Highest-Rated Group . | . . . Highest-Rated Ally . | . . . Total Orders . | . . . Ally Attacks . | . . . Total Damage . | . . . Kills . | . . . Allies Corrupted . | . . . Allies Melted . | . . . Intel | -11 -10 -10 ------- Run | Yrd Mat Min Active Infowar (turns) 501 | 35 397 69 Terrain 1 | . 1 . Seismic 500 | 35 396 69 Robot Analysis Total . | . . . Derelict Logs Recovered 1 | . . 1 Drone Launches . | . . . Drone Recoveries . | . . . Exploration | -11 -10 -10 ------------- Run | Yrd Mat Min Turns Passed 716 | 163 484 69 Spaces Moved 455 | 86 320 49 Core 14 | 4 . 10 Treads . | . . . Legs 441 | 82 320 39 Wheels . | . . . Hover . | . . . Flight . | . . . Fastest Speed 50 | 50 120 100 Average Speed 120 | 116 121 123 Slowest Speed 190 | 120 190 190 Overloaded Moves . | . . . Propulsion Burnouts . | . . . Robots Hopped . | . . . Potential Cave-ins . | . . . Cave-ins Triggered . | . . . Exploration Rate (%) 22 | 4 48 16 Regions Visited 2 Branch Regions 1 Pre-discovered Areas . | . . . Known Exits Taken . | . . . Unknown Exits Taken 2 | 1 1 . Scrap Searched . | . . . Spaces Dug 2 | . 2 . Terrain Destroyed 30 | . 25 5 Melee . | . . . Projectile 2 | . 2 . AOE 28 | . 23 5 Terrain Rammed . | . . . Walls Destroyed . | . . . Machines Disabled . | . . . Actions | -11 -10 -10 --------- Run | Yrd Mat Min Total 563 | 125 384 54 Wait 23 | . 22 1 Move 453 | 85 319 49 Hop . | . . . Pick Up 17 | 8 9 . Fast Attach 6 | 6 . . Attach 2 | 1 1 . Detach . | . . . Swap 9 | . 8 1 Drop 7 | . 7 . Fire 46 | 25 18 3 Melee . | . . . Ram . | . . . Kick . | . . . Crush . | . . . Escape Stasis . | . . . Rewire . | . . . Trap . | . . . Miscellaneous . | . . . Route ------- -11/Scrapyard -10/Materials (discovered 4 exits: [*Mat x3] / [*Min]) -10/Mines History --------- Turn | Location | Event 8 | -11/Scrapyard | Discovered new exit (range 15) 164 | -11/Scrapyard | Entered Materials 333 | -10/Materials | Build established: Mutant 340 | -10/Materials | Discovered new exit (range 16) 388 | -10/Materials | Repaired Aluminum Leg 440 | -10/Materials | Discovered new exit (range 11) 504 | -10/Materials | Discovered new exit (range 12) 559 | -10/Materials | Discovered new exit (range 14) 648 | -10/Materials | Entered Mines 659 | -10/Mines | Assembled infested the area 664 | -10/Mines | Assisted by a Guerilla fighting off Assembled 671 | -10/Mines | Learned Materials garrison access intel 704 | -10/Mines | Core integrity fell below 50% 714 | -10/Mines | Core integrity fell below 20% 717 | -10/Mines | Destroyed by D-53 Grenadier with Mini Grenade Launcher Last Messages --------------- group of Assembled to figure out where they're coming from, and they're closing on this area, come on!" 00671_ Acquired derelict log, extracted data. Data stored: Materials garrison access intel. 00681_ 2Z-3OB(h): "I'll hold them off! Go on ahead or try to find another way!" 00683_ T-07 Excavator destroyed. 00685_ HV Slug penetrates Wall. 00686_ K-01 Serf collects debris. 00688_ 2Z-3OB(h) destroyed. 00688_ T-07 Excavator destroyed. 00689_ K-01 Serf collects debris. 00692_ The unstable cave ceiling collapses. 00700_ Grenade Launcher destroyed. 00700_ Aluminum Leg destroyed. 00702_ Ion Engine destroyed. 00703_ Aluminum Leg destroyed. 00705_ as-05598 destroyed. 00712_ Sml. Laser destroyed. Map ----- +----------------------------------------------------+ | ??????????????????????????????# ##?????? | | ?????????????????????????????## #?????? | | ?????????????????????????????#% #?????? | | ????????????????????????###### ##????? | | ????????????????????????# "###??? | | ??????????????????????????## #??? | | ??????????????????????????# #### | | ??????????????????????????# | | ??????????????????????????# # ##### | | ??????????????????????????# ##???# | | ??????????????????????????# #???# | | ???????????????????????????# ##### | | ???????????????????????????? % | | ???????????????????????????# | | ???????????????????????????# #### | | ???????????????????????????# #???? | | ????????????????????????#### ##????? | | ???????????????????????## #?????? | | ??????????????????????## ##?????? | | ??????????????????????# ### ## | | ?????????????????????## # | | ????????????????##### # d | | ????????????????# #### | | ????????????????# d ##??? | | ???????????????## #???? | | ???????????????#@ #?????# | | ???????????????## #?????? | | ???????????????# ##?????? | | ???????????????# ####??????? | | ???????????????### # ########?????????? | | ?????????????????#######????????????????? | | ????????????????????????????????????????? | | | | | | | | | | | | | | | | | | | | | | | | | | | | | | | | | | | | | +----------------------------------------------------+ Best States ------------- Heat Dissipation 25 Energy Generation 10 Energy Capacity 250 Matter Stores 283 Matter Capacity 300 Sight Range 16 Terrain Scan Range 16 Terrain Scan Density 10 Power Shielding 33 Evasion (%) 55 Item Schematics ----------------- None Robot Schematics ------------------ None Fabricated ------------ Nothing Repaired ---------- Aluminum Leg | 3% | -10/Materials Alien Tech Used ----------------- None Achievements -------------- None Challenges ------------ None Game ------ Seed MakeshiftCorruptionMaul Manual? 0 Play Time 00:13:29 Cumulative 8.6 hours Start 2025.06.04 @ 16:55:27 End 2025.06.04 @ 17:32:49 Sessions 1 Manual Loads 0 Difficulty Rogue Special Mode None Game No. 11 Rogue 11 Adventurer 0 Explorer 0 Win Type - Total 0 Types 0/0/0/0/0/0/0/0/0/0 Lore% 14 Gallery% 13 Achievement% 14 Wizard Run 0 Options --------- Layout 1 ASCII 0 Keyboard 0 Movement Mouse Keybinds 0 Fullscreen 1 Font 24/Smallcaps Map View 50x40 Zoom Use 0% Tactical HUD 1 Map Filters NONE Filters NONE Steam 1 RUN: 7289ca1d-b40c-4a31-a151-b6543d7db04e